bitfinex/quotes_BTCUSD_20230404
["timestamp","ask_amount","ask_price","bid_price","bid_amount"]
[1680641102602,0.05459,28252.0,28251.0,0.37715331]
[1680641103056,0.05459,28252.0,28251.0,0.18262623]
[1680641103497,0.04059,28252.0,28251.0,0.18262623]
[1680641103721,0.05459,28252.0,28251.0,0.18262623]
[1680641103955,0.04059,28252.0,28251.0,0.18262623]
[1680641104175,0.05459,28252.0,28251.0,0.21797623]
[1680641107018,0.05459,28252.0,28250.0,0.00012]
[1680641107260,0.05459,28252.0,28249.0,0.38867997]
[1680641107478,0.05459,28252.0,28250.0,0.50007877]
[1680641107702,0.05459,28252.0,28250.0,0.46710477]
[1680641107904,0.05459,28252.0,28251.0,0.44746415]
[1680641108127,0.04059,28252.0,28251.0,0.44746415]
[1680641108798,0.04059,28252.0,28250.0,0.00018]
[1680641109105,0.04059,28252.0,28248.0,0.17004]
[1680641109106,0.21958548,28251.0,28248.0,0.17004]
[1680641110422,0.21958548,28251.0,28248.0,0.16986]
[1680641111071,0.22658548,28251.0,28248.0,0.16986]
[1680641111284,0.21958548,28251.0,28248.0,0.16986]
[1680641112152,0.22658548,28251.0,28248.0,0.16986]
[1680641112427,0.21958548,28251.0,28248.0,0.16986]
[1680641112649,0.22658548,28251.0,28248.0,0.16986]
[1680641112879,0.2047714,28250.0,28248.0,0.16986]
[1680641113102,0.2047714,28250.0,28247.0,0.17004]
[1680641113760,0.35471056,28249.0,28247.0,6e-05]
[1680641113969,0.35471056,28249.0,28246.0,0.25435801]
[1680641113970,0.35471056,28249.0,28246.0,0.00018]
[1680641114189,0.35471056,28249.0,28245.0,0.0230572]
[1680641114615,0.35471056,28249.0,28245.0,0.0229372]
[1680641115255,0.35471056,28249.0,28245.0,0.42502613]
[1680641115486,0.19291976,28248.0,28245.0,0.0231172]
[1680641115698,0.19291976,28248.0,28245.0,0.0229372]
[1680641116128,0.18803976,28248.0,28245.0,0.0230572]
[1680641116339,0.36321056,28247.0,28245.0,0.0229972]
[1680641116557,0.36321056,28247.0,28245.0,0.0231172]
[1680641116789,0.15,28246.0,28245.0,0.0229372]
[1680641117011,0.51321056,28246.0,28245.0,0.0229372]
[1680641117224,0.36321056,28246.0,28245.0,0.0229372]
[1680641117933,0.38728456,28246.0,28245.0,0.0229372]
[1680641118153,0.55275708,28246.0,28245.0,0.0229372]
[1680641118830,0.57275708,28246.0,28245.0,0.0229372]
[1680641119304,0.607772,28246.0,28245.0,0.0229372]
[1680641119540,0.44229948,28246.0,28245.0,0.0229372]
[1680641119775,1.11569948,28246.0,28245.0,0.0229372]
[1680641120958,1.09590948,28246.0,28245.0,0.0229372]
[1680641121191,1.12290948,28246.0,28245.0,0.0229372]
[1680641121411,1.09590948,28246.0,28245.0,0.0229372]
[1680641121628,1.12290948,28246.0,28245.0,0.0229372]
[1680641121869,1.3318601,28246.0,28245.0,0.0229372]
[1680641122109,1.12290948,28246.0,28245.0,0.0229372]
[1680641122328,1.12269948,28246.0,28245.0,0.0229372]
[1680641122562,1.32661788,28246.0,28245.0,0.0229372]
[1680641123921,1.44759127,28246.0,28245.0,0.0229372]
[1680641124370,1.44738127,28246.0,28245.0,0.0229372]
[1680641125509,1.44759127,28246.0,28245.0,0.0229372]
[1680641125951,1.44738127,28246.0,28245.0,0.00356073]
[1680641126402,1.14044191,28246.0,28245.0,0.00356073]
[1680641127837,1.12269948,28246.0,28245.0,0.00356073]
[1680641128970,1.31894789,28246.0,28245.0,0.00356073]
[1680641129416,1.12269948,28246.0,28245.0,0.00356073]
[1680641130765,1.12278948,28246.0,28245.0,0.00356073]
[1680641131015,1.16269948,28246.0,28245.0,0.00356073]
[1680641131229,1.37633346,28246.0,28245.0,0.00356073]
[1680641131465,1.37633346,28246.0,28242.0,0.02166073]
[1680641131683,0.89926744,28245.0,28242.0,0.02166073]
[1680641131914,0.3734,28244.0,28242.0,0.02166073]
[1680641132142,0.68744356,28243.0,28242.0,0.02166073]
[1680641132364,0.66321056,28243.0,28242.0,0.02166073]
[1680641133071,0.66321056,28243.0,28242.0,0.04920936]
[1680641133296,0.69021056,28243.0,28242.0,0.04920936]
[1680641133734,0.69021056,28243.0,28242.0,0.02166073]
[1680641134681,0.39021056,28243.0,28242.0,0.02166073]
[1680641134882,0.39021056,28243.0,28242.0,0.02184073]
[1680641135580,0.39021056,28243.0,28242.0,0.02166073]
[1680641136505,0.59125379,28243.0,28242.0,0.02166073]
[1680641137359,0.61652479,28243.0,28242.0,0.02166073]
[1680641137529,0.41548156,28243.0,28242.0,0.02166073]
[1680641137900,0.62500299,28243.0,28242.0,0.02166073]
[1680641140609,0.77486299,28243.0,28242.0,0.02166073]
[1680641141048,1.14826299,28243.0,28242.0,0.02166073]
[1680641142855,0.93874156,28243.0,28242.0,0.02166073]
[1680641143495,1.12534353,28243.0,28242.0,0.02166073]
[1680641143696,0.93874156,28243.0,28242.0,0.02166073]
[1680641143905,1.14731201,28243.0,28242.0,0.02166073]
[1680641144117,1.12031201,28243.0,28242.0,0.02166073]
[1680641144321,0.93874156,28243.0,28242.0,0.02166073]
[1680641144531,0.91174156,28243.0,28242.0,0.02166073]
[1680641144738,1.15527291,28243.0,28242.0,0.02166073]
[1680641148578,1.12827291,28243.0,28242.0,0.02166073]
[1680641148804,1.3035232,28243.0,28242.0,0.02166073]
[1680641149036,1.30513031,28243.0,28242.0,0.02166073]
[1680641149268,1.12954198,28243.0,28242.0,0.02166073]
[1680641151131,1.42954198,28243.0,28242.0,0.02166073]
[1680641151608,1.23699185,28243.0,28242.0,0.02166073]
[1680641151847,1.44553697,28243.0,28242.0,0.02166073]
[1680641152512,1.44612697,28243.0,28242.0,0.02166073]
[1680641152738,1.29787668,28243.0,28242.0,0.02166073]
[1680641153666,1.08933156,28243.0,28242.0,0.02166073]
[1680641153893,1.2733509,28243.0,28242.0,0.02166073]
[1680641155395,1.2480799,28243.0,28242.0,0.02166073]
[1680641155508,1.2482899,28243.0,28242.0,0.02166073]
[1680641155735,1.2729259,28243.0,28242.0,0.02166073]
[1680641155971,1.2480799,28243.0,28242.0,0.02166073]
[1680641156192,1.2717509,28243.0,28242.0,0.02166073]
[1680641157081,1.2482899,28243.0,28242.0,0.02166073]
[1680641157544,1.2724909,28243.0,28242.0,0.02166073]
[1680641158426,1.2480799,28243.0,28242.0,0.02166073]
[1680641159291,1.2711529,28243.0,28242.0,0.02166073]
[1680641159533,1.2480799,28243.0,28242.0,0.02166073]
[1680641160405,1.2725679,28243.0,28242.0,0.02166073]
[1680641161265,1.2480799,28243.0,28242.0,0.02166073]
[1680641161470,1.2720729,28243.0,28242.0,0.02166073]
[1680641162143,1.2722829,28243.0,28242.0,0.02166073]
[1680641162365,1.2720729,28243.0,28242.0,0.02166073]
[1680641162581,1.2480799,28243.0,28242.0,0.02166073]
[1680641162799,1.2726389,28243.0,28242.0,0.02166073]
[1680641163490,1.39992379,28243.0,28242.0,0.02166073]
[1680641163727,1.27679023,28243.0,28242.0,0.02166073]
[1680641163959,1.27760223,28243.0,28242.0,0.02166073]
[1680641169944,1.25223123,28243.0,28242.0,0.02166073]
[1680641170434,1.27655223,28243.0,28242.0,0.02166073]
[1680641172219,1.27755223,28243.0,28242.0,0.02166073]
[1680641175001,1.27776223,28243.0,28242.0,0.02166073]
[1680641176340,1.27755223,28243.0,28242.0,0.02166073]
[1680641177444,1.06506056,28243.0,28242.0,0.02166073]
[1680641178118,1.30610053,28243.0,28242.0,0.02166073]
[1680641178342,1.28061653,28243.0,28242.0,0.02166073]
[1680641179272,1.30504153,28243.0,28242.0,0.02166073]
[1680641180067,1.30513153,28243.0,28242.0,0.01900547]
[1680641180263,1.30504153,28243.0,28242.0,0.01900547]
[1680641183362,1.08948556,28243.0,28242.0,0.01900547]
[1680641183581,1.08948556,28243.0,28242.0,0.01018847]
[1680641183582,1.39322755,28243.0,28242.0,0.01018847]
[1680641183812,1.39322755,28243.0,28242.0,0.00120247]
[1680641184018,1.31317589,28243.0,28242.0,0.00120247]
[1680641184445,1.10722799,28243.0,28242.0,0.00120247]
[1680641184652,1.29653003,28243.0,28242.0,0.00120247]
[1680641184853,1.10722799,28243.0,28242.0,0.00120247]
[1680641185254,1.30761465,28243.0,28242.0,0.00120247]
[1680641185484,0.00021,28245.0,28242.0,0.68279185]
[1680641185717,0.16985295,28248.0,28244.0,0.0836]
[1680641185718,0.00012,28248.0,28244.0,0.0836]
[1680641185945,0.00021,28252.0,28247.0,0.0829]
[1680641186172,0.21177938,28253.0,28247.0,0.0829]
[1680641186173,0.00021,28253.0,28248.0,1.19691837]
[1680641186415,6e-05,28253.0,28250.0,0.08437801]
[1680641186643,0.00021,28255.0,28251.0,0.28298781]
[1680641186867,0.10637275,28258.0,28252.0,0.045101]
[1680641186868,0.15740535,28256.0,28252.0,0.045101]
[1680641187088,0.15740535,28256.0,28253.0,0.14189681]
[1680641187318,0.15740535,28256.0,28254.0,0.040741]
[1680641187552,0.15740535,28256.0,28254.0,0.210601]
[1680641187809,0.21184815,28255.0,28254.0,0.00018]
[1680641188035,0.21184815,28255.0,28252.0,0.039944]
[1680641188240,0.21184815,28255.0,28252.0,0.209744]
[1680641188480,0.021871,28258.0,28253.0,0.211896]
[1680641188590,0.021661,28258.0,28254.0,0.041173]
[1680641188828,0.35471056,28257.0,28254.0,0.1698]
[1680641189075,0.35471056,28257.0,28253.0,0.00018]
[1680641189076,0.001,28255.0,28253.0,0.00018]
[1680641189276,0.35471056,28254.0,28252.0,6e-05]
[1680641189491,0.35471056,28254.0,28252.0,0.00018]
[1680641189705,0.35471056,28254.0,28251.0,6e-05]
[1680641189915,0.35471056,28254.0,28250.0,0.50437739]
[1680641190557,0.35471056,28254.0,28251.0,0.5557818]
[1680641190766,0.35471056,28254.0,28251.0,0.5559618]
[1680641190994,0.51397649,28254.0,28251.0,0.3859098]
[1680641191218,0.51397649,28254.0,28250.0,0.16998]
[1680641191219,0.18522234,28253.0,28250.0,0.16998]
[1680641191442,0.18522234,28253.0,28250.0,0.1698]
[1680641191677,0.18522234,28253.0,28251.0,0.001]
[1680641191904,0.18522234,28253.0,28250.0,0.1698]
[1680641192148,0.18922234,28253.0,28250.0,0.1698]
[1680641192357,0.18522234,28253.0,28250.0,0.1698]
[1680641192553,0.19522234,28253.0,28251.0,0.001]
[1680641192783,0.18543234,28253.0,28250.0,0.1698]
[1680641192993,0.18522234,28253.0,28250.0,0.1698]
[1680641193231,0.18922234,28253.0,28249.0,0.80378347]
[1680641193446,0.18922234,28253.0,28250.0,0.1698]
[1680641193447,0.18522234,28253.0,28250.0,0.1698]
[1680641193667,0.19522234,28253.0,28250.0,0.1708]
[1680641193878,0.19543234,28253.0,28250.0,0.1708]
[1680641194572,0.18543234,28253.0,28250.0,0.1698]
[1680641194776,0.18522234,28253.0,28250.0,0.1698]
[1680641195220,0.19522234,28253.0,28250.0,0.1708]
[1680641195613,0.22543234,28253.0,28250.0,0.1698]
[1680641195856,0.22943234,28253.0,28250.0,0.1698]
[1680641196275,0.22543234,28253.0,28250.0,0.1698]
[1680641196495,0.22543234,28253.0,28250.0,0.1708]
[1680641196496,0.1582562,28252.0,28250.0,0.1708]
[1680641197410,0.1582562,28252.0,28250.0,0.1698]
[1680641198097,0.1682562,28252.0,28250.0,0.1708]
[1680641198393,0.35471056,28251.0,28250.0,0.1708]
[1680641198599,0.35471056,28251.0,28248.0,0.00018]
[1680641198600,0.018143,28250.0,28248.0,0.00018]
[1680641198816,0.018143,28250.0,28246.0,0.00018]
[1680641198817,0.35471056,28249.0,28246.0,0.00018]
[1680641199038,0.017086,28248.0,28246.0,0.00018]
[1680641199259,0.51969758,28249.0,28246.0,0.00018]
[1680641199480,0.016979,28248.0,28246.0,0.00018]
[1680641199738,0.016979,28248.0,28245.0,0.00018]
[1680641199968,0.35471056,28248.0,28244.0,0.62007602]
[1680641200185,0.35471056,28248.0,28244.0,0.62013602]
[1680641200438,0.16519702,28249.0,28244.0,0.00018]
[1680641200439,0.35471056,28247.0,28244.0,0.00018]
[1680641200666,0.017429,28246.0,28243.0,6e-05]
[1680641200933,0.36321056,28245.0,28244.0,0.001]
[1680641201162,0.68054256,28245.0,28242.0,0.00120247]
[1680641201382,0.316309,28244.0,28242.0,0.00120247]
[1680641201606,0.38039056,28243.0,28242.0,0.00120247]
[1680641201824,0.36321056,28243.0,28242.0,0.00120247]
[1680641202056,0.38140756,28243.0,28242.0,0.00120247]
[1680641203351,0.38140756,28243.0,28242.0,0.00320247]
[1680641203584,0.38140756,28243.0,28242.0,0.00120247]
[1680641203799,0.38221056,28243.0,28242.0,0.00320247]
[1680641204955,0.36321056,28243.0,28242.0,0.00120247]
[1680641205389,0.36342056,28243.0,28242.0,0.00120247]
[1680641205604,0.36342056,28243.0,28242.0,0.00320247]
[1680641205605,0.38242056,28243.0,28242.0,0.00320247]
[1680641205821,0.38221056,28243.0,28242.0,0.00320247]
[1680641206288,0.59043715,28243.0,28242.0,0.00320247]
[1680641206512,0.57143715,28243.0,28242.0,0.00120247]
[1680641206732,0.59043715,28243.0,28242.0,0.00320247]
[1680641206952,0.57143715,28243.0,28242.0,0.00120247]
[1680641207166,0.59043715,28243.0,28242.0,0.00320247]
[1680641207846,0.57143715,28243.0,28242.0,0.00120247]
[1680641208063,0.59043715,28243.0,28242.0,0.00320247]
[1680641208281,0.59043715,28243.0,28237.0,0.01255653]
[1680641208538,0.59043715,28243.0,28237.0,0.31998]
[1680641208539,0.16474899,28242.0,28237.0,0.31998]
[1680641208755,0.35471056,28241.0,28238.0,0.039732]
[1680641208967,0.35492056,28241.0,28237.0,0.50895711]
[1680641209395,0.35492056,28241.0,28237.0,0.16992]
[1680641209852,0.35492056,28241.0,28238.0,0.3811828]
[1680641210077,0.35492056,28241.0,28237.0,0.17392]
[1680641210078,0.20219559,28240.0,28237.0,0.17392]
[1680641210304,0.35471056,28239.0,28237.0,0.17392]
[1680641210524,0.35471056,28239.0,28237.0,0.004]
[1680641210525,0.35492056,28239.0,28237.0,0.004]
[1680641210975,0.35492056,28239.0,28235.0,0.63520268]
[1680641211250,0.35492056,28239.0,28237.0,0.001]
[1680641211914,0.35492056,28239.0,28236.0,0.41137975]
[1680641212134,0.1941485,28238.0,28236.0,0.41137975]
[1680641212364,0.1943585,28238.0,28235.0,0.16992]
[1680641212905,0.1943585,28238.0,28237.0,0.001]
[1680641213280,0.1943585,28238.0,28235.0,0.16992]
[1680641213942,0.2043585,28238.0,28235.0,0.17092]
[1680641214165,0.54906906,28238.0,28235.0,0.16992]
[1680641214389,0.56506906,28238.0,28235.0,0.17092]
[1680641214599,0.54906906,28238.0,28235.0,0.50715333]
[1680641214799,0.55906906,28238.0,28235.0,0.50815333]
[1680641215374,0.35471056,28237.0,28235.0,0.50815333]
[1680641215593,0.35492056,28237.0,28235.0,0.50815333]
[1680641216038,0.35492056,28237.0,28236.0,0.44796685]
[1680641216280,0.00021,28237.0,28236.0,0.44796685]
[1680641216487,0.00021,28239.0,28236.0,0.48882285]
[1680641216700,0.016,28237.0,28236.0,0.44796685]
[1680641216920,0.00021,28237.0,28236.0,0.44796685]
[1680641217332,0.02121,28237.0,28236.0,0.44896685]
[1680641218816,0.021,28237.0,28236.0,0.44830385]
[1680641219458,0.021,28237.0,28236.0,0.49043085]
[1680641224925,0.021,28237.0,28236.0,0.213047]
[1680641225138,0.021,28237.0,28236.0,0.59721977]
[1680641225811,0.021,28237.0,28236.0,0.42729977]
[1680641226691,0.00021,28240.0,28236.0,0.59621977]
[1680641226914,0.00021,28240.0,28237.0,0.040736]
[1680641227135,0.00021,28241.0,28237.0,0.040736]
[1680641227544,0.00021,28241.0,28238.0,0.33286003]
[1680641227766,0.00021,28241.0,28239.0,0.041993]
[1680641227976,0.00021,28241.0,28238.0,0.33286003]
[1680641228187,0.00321,28241.0,28239.0,0.039745]
[1680641228427,0.22077867,28241.0,28239.0,0.039745]
[1680641228654,0.23677867,28241.0,28239.0,0.040745]
[1680641228861,0.23677867,28241.0,28239.0,0.001]
[1680641229284,0.16603655,28240.0,28239.0,0.001]
[1680641229504,0.16624655,28240.0,28239.0,0.001]
[1680641230607,0.16624655,28240.0,28236.0,0.38428878]
[1680641231052,0.53695711,28240.0,28239.0,0.001]
[1680641231258,0.55431311,28240.0,28239.0,0.001]
[1680641231928,0.53695711,28240.0,28239.0,0.001]
[1680641232136,1.12801627,28240.0,28239.0,0.001]
[1680641232348,1.15365227,28240.0,28239.0,0.001]
[1680641232567,1.34452221,28240.0,28239.0,0.001]
[1680641232778,1.52340428,28240.0,28239.0,0.001]
[1680641233211,1.34452221,28240.0,28239.0,0.001]
[1680641233424,1.32852221,28240.0,28235.0,0.16992]
[1680641233643,1.16946278,28239.0,28235.0,0.16992]
[1680641233860,1.16967278,28239.0,28235.0,0.16992]
[1680641234077,0.15,28238.0,28235.0,0.16992]
[1680641234293,0.36321056,28237.0,28235.0,0.16992]
[1680641234510,0.3,28236.0,28235.0,0.16992]
[1680641234746,0.65492056,28236.0,28235.0,0.16992]
[1680641234973,0.66342056,28236.0,28235.0,0.16992]
[1680641235189,0.66342056,28236.0,28235.0,0.56778613]
[1680641235406,0.66342056,28236.0,28235.0,0.56741356]
[1680641235644,0.66342056,28236.0,28235.0,0.60738756]
[1680641235861,0.66342056,28236.0,28235.0,0.60988556]
[1680641236086,0.66342056,28236.0,28235.0,0.56741356]
[1680641236295,0.36342056,28236.0,28235.0,0.56741356]
[1680641236518,0.00021,28236.0,28235.0,0.35396181]
[1680641236769,0.021,28236.0,28235.0,0.229773]
[1680641237451,0.00021,28241.0,28235.0,0.229773]
[1680641237668,0.00021,28241.0,28236.0,0.18254281]
[1680641237879,0.00890631,28243.0,28238.0,0.15]
[1680641238104,0.00869631,28243.0,28239.0,0.18577181]
[1680641238325,0.00869631,28243.0,28239.0,0.20347681]
[1680641238527,0.00869631,28243.0,28240.0,0.042999]
[1680641238961,0.00869631,28243.0,28239.0,0.43663355]
[1680641239183,0.00869631,28243.0,28240.0,0.04189]
[1680641239421,0.00869631,28243.0,28239.0,0.041211]
[1680641239623,0.002,28241.0,28239.0,0.37460879]
[1680641239824,0.00869631,28243.0,28240.0,0.040552]
[1680641240052,0.00969631,28243.0,28240.0,0.040552]
[1680641240255,0.36340687,28243.0,28240.0,0.040552]
[1680641240467,0.001,28241.0,28239.0,0.34937977]
[1680641240673,0.001,28241.0,28240.0,0.41713678]
[1680641240881,0.00021,28242.0,28240.0,0.41713678]
[1680641241087,0.01069631,28243.0,28241.0,0.041175]
[1680641241313,0.01069631,28243.0,28241.0,0.14189681]
[1680641241539,0.00869631,28243.0,28242.0,0.16986]
[1680641241762,0.32408839,28251.0,28242.0,0.211055]
[1680641241763,0.00021,28247.0,28242.0,0.211055]
[1680641241977,0.00021,28247.0,28243.0,0.35495481]
[1680641242208,0.00021,28247.0,28244.0,0.209768]
[1680641242431,0.00021,28247.0,28245.0,0.208324]
[1680641242641,0.00221,28247.0,28246.0,0.041555]
[1680641242850,0.002,28247.0,28246.0,0.041555]
[1680641243071,0.0085,28248.0,28245.0,0.043488]
[1680641243304,0.001,28247.0,28245.0,0.043488]
[1680641243510,0.001,28247.0,28245.0,0.213348]
[1680641243732,0.00014912,28249.0,28246.0,0.50866482]
[1680641243942,0.36321056,28249.0,28247.0,0.040649]
[1680641244148,0.57464115,28249.0,28247.0,0.040649]
[1680641244438,0.18048317,28248.0,28247.0,0.040649]
[1680641245317,0.36335968,28249.0,28247.0,0.040649]
[1680641245563,0.36335968,28249.0,28247.0,0.041649]
[1680641245564,0.015,28248.0,28247.0,0.041649]
[1680641245764,0.0027,28248.0,28247.0,0.041649]
[1680641245998,0.0027,28248.0,28247.0,0.048749]
[1680641246419,0.0027,28248.0,28247.0,0.40508155]
[1680641246623,0.0027,28248.0,28247.0,0.40514155]
[1680641247564,0.0027,28248.0,28247.0,0.39804155]
[1680641247783,0.0027,28248.0,28247.0,0.39798155]
[1680641249252,0.0027,28248.0,28247.0,0.39804155]
[1680641249477,0.0027,28248.0,28247.0,0.39798155]
[1680641249960,0.0027,28248.0,28247.0,0.39804155]
[1680641250406,0.0027,28248.0,28247.0,0.041649]
[1680641250658,0.0027,28248.0,28247.0,0.001]
[1680641251105,0.21437273,28248.0,28247.0,0.043297]
[1680641253585,0.21437273,28248.0,28247.0,0.001]
[1680641254044,0.56908329,28248.0,28247.0,0.001]
[1680641256142,0.72758329,28248.0,28247.0,0.001]
[1680641256974,0.57758329,28248.0,28247.0,0.001]
[1680641257432,1.18931056,28248.0,28247.0,0.001]
[1680641257685,1.20668556,28248.0,28247.0,0.001]
[1680641258588,1.20668556,28248.0,28241.0,6e-05]
[1680641258589,1.20404556,28248.0,28241.0,6e-05]
[1680641258820,1.20404556,28248.0,28237.0,0.38966679]
[1680641258821,0.3734,28245.0,28237.0,0.38966679]
[1680641259046,0.75318656,28244.0,28237.0,0.38966679]
[1680641259268,0.15,28243.0,28237.0,0.00018]
[1680641259512,0.35471056,28242.0,28236.0,0.42782273]
[1680641259715,0.35471056,28242.0,28237.0,0.45355222]
[1680641259938,0.0085,28241.0,28237.0,0.45373222]
[1680641260154,0.35471056,28240.0,28238.0,0.35178143]
[1680641260373,0.35485968,28240.0,28238.0,0.35184143]
[1680641260595,0.35471056,28240.0,28238.0,0.35196143]
[1680641261270,0.37971056,28240.0,28238.0,0.35296143]
[1680641265844,0.37971056,28240.0,28238.0,0.00118]
[1680641266074,0.37971056,28240.0,28238.0,0.001]
[1680641266295,0.37971056,28240.0,28238.0,0.00118]
[1680641267310,0.37971056,28240.0,28238.0,0.001]
[1680641267311,0.37985968,28240.0,28238.0,0.001]
[1680641267961,0.37971056,28240.0,28238.0,0.00118]
[1680641268636,0.37971056,28240.0,28238.0,0.00112]
[1680641268637,0.37966718,28240.0,28238.0,0.00112]
[1680641268846,0.37960718,28240.0,28238.0,0.001]
[1680641270375,0.37960718,28240.0,28238.0,0.39213242]
[1680641270591,0.37960718,28240.0,28238.0,0.39231242]
[1680641270801,0.0167,28239.0,28238.0,0.39231242]
[1680641271439,0.0167,28239.0,28238.0,0.39131242]
[1680641271654,0.0417,28239.0,28238.0,0.39231242]
[1680641272685,0.0417,28239.0,28238.0,0.43479742]
[1680641273701,0.0417,28239.0,28238.0,0.43293042]
[1680641275182,0.0417,28239.0,28238.0,0.39231242]
[1680641275402,0.0417,28239.0,28238.0,0.43365742]
[1680641275829,0.0417,28239.0,28238.0,0.43359742]
[1680641277419,0.0417,28239.0,28238.0,0.39225242]
[1680641277626,0.0417,28239.0,28238.0,0.43414342]
[1680641280133,0.025,28239.0,28238.0,0.43402142]
[1680641280358,0.025,28239.0,28238.0,0.39231242]
[1680641281031,0.025,28239.0,28238.0,0.43468442]
[1680641281331,0.025,28239.0,28238.0,0.39231242]
[1680641281548,0.025,28239.0,28238.0,0.43497642]
[1680641281762,0.025,28239.0,28238.0,0.39231242]
[1680641282205,0.025,28239.0,28238.0,0.43344042]
[1680641283065,0.025,28239.0,28238.0,0.43326042]
[1680641283283,0.025,28239.0,28238.0,0.39219242]
[1680641283501,0.025,28239.0,28238.0,0.43416442]
[1680641283733,0.025,28239.0,28238.0,0.39219242]
[1680641284530,0.025,28239.0,28238.0,0.39231242]
[1680641286510,0.025,28239.0,28238.0,0.56223242]
[1680641286723,0.025,28239.0,28238.0,0.39231242]
[1680641289121,0.025,28239.0,28238.0,0.43479542]
[1680641289538,0.025,28239.0,28238.0,0.39231242]
[1680641292555,0.025,28239.0,28238.0,0.43281142]
[1680641295693,0.025,28239.0,28238.0,0.43263142]
[1680641296133,0.025,28239.0,28238.0,0.43269142]
[1680641297176,0.0417,28239.0,28238.0,0.43263142]
[1680641297387,0.0417,28239.0,28238.0,0.60255142]
[1680641297790,0.025,28239.0,28238.0,0.211539]
[1680641297993,0.0089082,28242.0,28239.0,8.62e-05]
[1680641298229,0.0168,28245.0,28239.0,0.31222238]
[1680641298395,0.0168,28245.0,28240.0,0.18478181]
[1680641298597,0.0168,28245.0,28241.0,0.045695]
[1680641298857,0.0168,28245.0,28241.0,0.74123907]
[1680641299201,0.01894912,28245.0,28242.0,0.16986]
[1680641299408,0.0168,28245.0,28242.0,0.16986]
[1680641299623,0.0168,28245.0,28243.0,0.041326]
[1680641299833,0.0178,28245.0,28242.0,0.16986]
[1680641300057,0.3168,28245.0,28242.0,0.16986]
[1680641300268,0.31694912,28245.0,28243.0,0.044264]
[1680641300532,0.01694912,28245.0,28243.0,0.044264]
[1680641300748,0.0168,28248.0,28244.0,0.210457]
[1680641300931,0.5613662,28248.0,28244.0,0.31175681]
[1680641301164,0.5613662,28248.0,28244.0,0.14189681]
[1680641301165,0.37165968,28248.0,28244.0,0.14189681]
[1680641301385,0.37165968,28248.0,28245.0,0.34006415]
[1680641301838,0.17023544,28247.0,28243.0,0.001]
[1680641302060,0.17038456,28247.0,28244.0,0.16986]
[1680641302280,0.17038456,28247.0,28244.0,0.001]
[1680641302498,0.17038456,28247.0,28244.0,0.5792479]
[1680641302946,0.17038456,28247.0,28244.0,0.4083879]
[1680641303135,0.17038456,28247.0,28244.0,0.4085679]
[1680641303136,0.17013297,28247.0,28244.0,0.4085679]
[1680641303862,0.17113297,28247.0,28244.0,0.4085679]
[1680641304077,0.35485968,28248.0,28245.0,0.41067109]
[1680641304078,0.57180376,28248.0,28245.0,0.41067109]
[1680641304276,0.001,28247.0,28246.0,0.039748]
[1680641304563,0.57165464,28248.0,28245.0,0.41085109]
[1680641305224,0.57165464,28248.0,28246.0,0.001]
[1680641305225,0.013,28247.0,28246.0,0.001]
[1680641305442,0.57165464,28248.0,28245.0,0.41085109]
[1680641305659,0.57865464,28248.0,28245.0,0.41185109]
[1680641305869,0.3,28247.0,28245.0,0.41185109]
[1680641306976,0.00868839,28251.0,28246.0,0.35314309]
[1680641307191,0.00868839,28251.0,28246.0,0.4962199]
[1680641307439,0.00868839,28251.0,28246.0,0.4952199]
[1680641307804,0.00868839,28251.0,28246.0,0.35332309]
[1680641308023,0.01068839,28251.0,28246.0,0.35432309]
[1680641308347,0.00868839,28251.0,28246.0,0.35332309]
[1680641308553,0.01068839,28251.0,28246.0,0.35332309]
[1680641308904,0.31068839,28251.0,28246.0,0.35332309]
[1680641310780,0.31068839,28251.0,28247.0,0.43555373]
[1680641310997,0.31068839,28251.0,28247.0,0.43573373]
[1680641311883,0.30868839,28251.0,28247.0,0.43573373]
[1680641312121,0.31068839,28251.0,28247.0,0.43673373]
[1680641312342,0.31068839,28251.0,28247.0,0.00118]
[1680641312570,0.31068839,28251.0,28247.0,0.001]
[1680641312995,0.41068839,28251.0,28247.0,0.001]
[1680641313216,0.68208839,28251.0,28246.0,0.00012]
[1680641313446,0.68408839,28251.0,28247.0,0.001]
[1680641313866,0.68208839,28251.0,28246.0,0.00012]
[1680641314093,0.68408839,28251.0,28246.0,0.00112]
[1680641314313,0.68208839,28251.0,28246.0,0.00012]
[1680641314534,0.68408839,28251.0,28247.0,0.001]
[1680641314761,0.68208839,28251.0,28246.0,0.00012]
[1680641314983,0.68408839,28251.0,28246.0,0.00112]
[1680641316076,0.68208839,28251.0,28246.0,0.00012]
[1680641316292,0.68408839,28251.0,28246.0,0.00012]
[1680641316567,0.68229839,28251.0,28245.0,0.40094909]
[1680641316739,0.68429839,28251.0,28246.0,0.001]
[1680641317138,0.68429839,28251.0,28246.0,0.40662279]
[1680641317341,0.68429839,28251.0,28246.0,0.40674279]
[1680641317547,0.68408839,28251.0,28246.0,0.40680279]
[1680641321347,0.31068839,28251.0,28247.0,0.37381406]
[1680641321564,0.01068839,28251.0,28247.0,0.37399406]
[1680641322486,0.00868839,28251.0,28247.0,0.37399406]
[1680641322699,0.01068839,28251.0,28247.0,0.37599406]
[1680641322916,0.01068839,28251.0,28247.0,0.37593406]
[1680641323138,0.01068839,28251.0,28247.0,0.37599406]
[1680641326040,0.01068839,28251.0,28247.0,0.37593406]
[1680641326260,0.01068839,28251.0,28247.0,0.00212]
[1680641326485,0.01068839,28251.0,28247.0,0.002]
[1680641328706,0.01068839,28251.0,28247.0,0.46776033]
[1680641328946,0.01068839,28251.0,28247.0,0.46794033]
[1680641329844,0.01068839,28251.0,28247.0,0.46788033]
[1680641330722,0.01068839,28251.0,28247.0,0.46794033]
[1680641331571,0.00868839,28251.0,28247.0,0.46594033]
[1680641331785,0.01068839,28251.0,28247.0,0.46694033]
[1680641335071,0.00868839,28251.0,28247.0,0.46594033]
[1680641335536,0.00868839,28251.0,28248.0,0.43819642]
[1680641335749,0.01068839,28251.0,28248.0,0.43819642]
[1680641336656,0.00868839,28251.0,28248.0,0.43819642]
[1680641336861,0.01068839,28251.0,28248.0,0.44019642]
[1680641339013,0.01068839,28251.0,28249.0,0.36490238]
[1680641339249,0.01068839,28251.0,28249.0,0.36502238]
[1680641340362,0.01068839,28251.0,28249.0,0.36708238]
[1680641341304,0.00868839,28251.0,28249.0,0.36508238]
[1680641341452,0.00868839,28251.0,28249.0,0.36608238]
[1680641341453,0.01068839,28251.0,28249.0,0.36608238]